fUSD/lending_fUSD_20260427
["ID","MTS","AMOUNT","RATE_DAILY","PERIOD"]
[421241361,1777287066451,-500.0,0.00033424,120]
[421241362,1777287066460,-668.1,0.00033424,120]
[421241363,1777287066470,-500.0,0.00033424,120]
[421241364,1777287066479,-500.0,0.00033424,120]
[421241365,1777287066488,-500.0,0.00033424,120]
[421241366,1777287066498,-500.0,0.00033424,120]
[421241367,1777287066507,-660.18,0.00033424,120]
[421241368,1777287066516,-500.0,0.00033424,120]
[421241369,1777287066525,-691.69,0.00033424,120]
[421241370,1777287066535,-500.0,0.00033424,120]
[421241371,1777287066544,-691.03,0.00033424,120]
[421241372,1777287066553,-500.0,0.00033424,120]
[421241373,1777287066563,-618.59,0.00033424,30]
[421241374,1777287066572,-500.0,0.00033424,120]
[421241375,1777287066582,-953.58,0.00033424,120]
[421241376,1777287066591,-922.63,0.00033424,120]
[421241377,1777287066600,-4917.9,0.00033424,120]
[421241378,1777287066609,-525.11,0.00033424,120]
[421241379,1777287066618,-551.36,0.00033424,120]
[421241380,1777287066627,-500.0,0.00033424,14]
[421241381,1777287066636,-500.0,0.00033424,120]
[421241382,1777287066645,-840.29,0.00033424,120]
[421241383,1777287066655,-500.0,0.00033424,120]
[421241384,1777287066664,-739.88,0.00033424,120]
[421241385,1777287066673,-919.84,0.00033424,120]
[421241386,1777287066682,-1800.54,0.00033424,120]
[421241387,1777287066691,-500.0,0.00033424,120]
[421241388,1777287066700,-1344.25,0.00033424,120]
[421241389,1777287066710,-500.0,0.00033424,30]
[421241390,1777287066719,-500.0,0.00033424,120]
[421241391,1777287066728,-500.0,0.00033424,120]
[421241392,1777287066737,-210.24,0.00033424,120]
[421241393,1777287066747,-614.01798747,0.00033424,120]
[421241394,1777287066757,-916.78,0.00033424,120]
[421241395,1777287066766,-500.0,0.00033424,60]
[421241396,1777287066774,-332.80559003,0.00033424,120]
[421241397,1777287066783,-1345.97,0.00033424,120]
[421241398,1777287066792,-1078.03,0.00033424,120]
[421241399,1777287066801,-500.0,0.00033424,120]
[421241400,1777287066818,-500.0,0.00033424,14]
[421241401,1777287066828,-500.0,0.00033424,12]
[421241402,1777287066837,-334.5158544,0.00033424,120]
[421241403,1777287066846,-947.63,0.00033424,120]
[421241404,1777287066855,-549.91,0.00033424,120]
[421241405,1777287066864,-500.0,0.00033424,120]
[421241406,1777287066874,-500.0,0.00033424,120]
[421241407,1777287066883,-500.0,0.00033424,120]
[421241408,1777287066891,-748.29,0.00033424,120]
[421241409,1777287066901,-500.0,0.00033424,120]
[421241410,1777287066910,-1742.02,0.00033424,120]
[421241411,1777287066920,-500.0,0.00033424,120]
[421241412,1777287066929,-980.13,0.00033424,120]
[421241413,1777287066939,-547.89,0.00033424,120]
[421241414,1777287066948,-500.0,0.00033424,120]
[421241415,1777287066957,-500.0,0.00033424,120]
[421241416,1777287066967,-500.0,0.00033424,120]
[421241417,1777287066975,-808.71,0.00033424,120]
[421241418,1777287066985,-697.0,0.00033424,120]
[421241419,1777287066994,-500.0,0.00033424,30]
[421241420,1777287067004,-500.0,0.00033424,120]
[421241421,1777287067014,-500.0,0.00033424,120]
[421241422,1777287067023,-698.74,0.00033424,120]
[421241423,1777287067034,-861.18,0.00033424,120]
[421241424,1777287067043,-500.0,0.00033424,120]
[421241425,1777287067053,-599.72,0.00033424,120]
[421241426,1777287067063,-971.15,0.00033424,120]
[421241427,1777287067072,-1898.91,0.00033424,120]
[421241428,1777287067083,-2008.02,0.00033424,120]
[421241429,1777287067092,-500.0,0.00033424,120]
[421241430,1777287067102,-500.0,0.00033424,120]
[421241431,1777287067112,-500.0,0.00033424,120]
[421241432,1777287067122,-546.88,0.00033424,120]
[421241433,1777287067132,-500.0,0.00033424,120]
[421241434,1777287067141,-500.0,0.00033424,120]
[421241435,1777287067151,-500.0,0.00033424,120]
[421241436,1777287067161,-933.2,0.00033424,120]
[421241437,1777287067172,-923.43,0.00033424,120]
[421241438,1777287067183,-814.23,0.00033424,7]
[421241439,1777287067194,-500.0,0.00033424,120]
[421241440,1777287067205,-545.89,0.00033424,120]
[421241441,1777287067215,-633.22918152,0.00033424,120]
[421241442,1777287067226,-500.0,0.00033424,120]
[421241443,1777287067236,-500.0,0.00033424,120]
[421241444,1777287067246,-607.22,0.00033424,120]
[421241445,1777287067256,-500.0,0.00033424,120]
[421241446,1777287067267,-1022.01,0.00033424,120]
[421241447,1777287067277,-1403.37,0.00033424,120]
[421241448,1777287067287,-500.0,0.00033424,120]
[421241449,1777287067297,-500.0,0.00033424,120]
[421241450,1777287067307,-500.0,0.00033424,120]
[421241451,1777287067317,-571.92,0.00033424,120]
[421241452,1777287067326,-501.69,0.00033424,120]
[421241453,1777287067336,-996.98,0.00033424,120]
[421241454,1777287067346,-500.0,0.00033424,120]
[421241455,1777287067356,-500.0,0.00033424,120]
[421241456,1777287067366,-500.0,0.00033424,120]
[421241457,1777287067377,-500.0,0.00033424,120]
[421241458,1777287067387,-500.0,0.00033424,120]
[421241459,1777287067396,-500.0,0.00033424,120]
[421241460,1777287067406,-500.0,0.00033424,120]
[421241461,1777287067416,-500.0,0.00033424,120]
[421241462,1777287067426,-2027.39,0.00033424,120]
[421241463,1777287067436,-500.0,0.00033424,120]
[421241464,1777287067446,-500.0,0.00033424,120]
[421241465,1777287067456,-500.86281419,0.00033424,120]
[421241466,1777287067466,-544.78,0.00033424,120]
[421241467,1777287067476,-239.98,0.00033424,120]
[421241468,1777287067486,-1173.63,0.00033424,120]
[421241469,1777287067496,-580.92,0.00033424,120]
[421241470,1777287067507,-500.0,0.00033424,120]
[421241471,1777287067518,-500.0,0.00033424,120]
[421241472,1777287067528,-500.0,0.00033424,120]
[421241473,1777287067538,-957.19,0.00033424,120]
[421241474,1777287067548,-500.0,0.00033424,120]
[421241475,1777287067558,-500.0,0.00033424,120]
[421241476,1777287067567,-1129.42,0.00033424,120]
[421241477,1777287067583,-500.0,0.00033424,120]
[421241478,1777287067593,-500.0,0.00033424,120]
[421241479,1777287067604,-549.6,0.00033424,120]
[421241480,1777287067615,-500.0,0.00033424,120]
[421241481,1777287067625,-500.0,0.00033424,120]
[421241482,1777287067635,-500.0,0.00033424,120]
[421241483,1777287067645,-500.0,0.00033424,120]
[421241484,1777287067656,-500.0,0.00033424,120]
[421241485,1777287067666,-957.72,0.00033424,120]
[421241486,1777287067676,-2273.93,0.00033424,120]
[421241487,1777287067685,-500.0,0.00033424,120]
[421241488,1777287067695,-500.0,0.00033424,120]
[421241489,1777287067705,-531.34,0.00033424,120]
[421241490,1777287067715,-500.0,0.00033424,120]
[421241491,1777287067725,-500.0,0.00033424,120]
[421241492,1777287067734,-500.0,0.00033424,120]
[421241493,1777287067745,-500.0,0.00033424,120]
[421241494,1777287067755,-826.33,0.00033424,120]
[421241495,1777287067765,-509.36,0.00033424,120]
[421241496,1777287067775,-500.0,0.00033424,120]
[421241497,1777287067785,-1144.83,0.00033424,120]
[421241498,1777287067795,-870.72,0.00033424,120]
[421241499,1777287067805,-500.0,0.00033424,120]
[421241500,1777287067816,-500.0,0.00033424,120]
[421241501,1777287067826,-500.0,0.00033424,120]
[421241502,1777287067836,-500.0,0.00033424,120]
[421241503,1777287067846,-1987.57,0.00033424,120]
[421241504,1777287067857,-1889.91,0.00033424,120]
[421241505,1777287067867,-997.41,0.00033424,120]
[421241506,1777287067878,-500.0,0.00033424,120]
[421241507,1777287067889,-500.0,0.00033424,16]
[421241508,1777287067899,-645.47,0.00033424,120]
[421241509,1777287067911,-551.39,0.00033424,120]
[421241510,1777287067921,-500.0,0.00033424,120]
[421241511,1777287067931,-316.44,0.00033424,120]
[421241512,1777287067941,-500.0,0.00033424,120]
[421241513,1777287067952,-607.71,0.00033424,120]
[421241514,1777287067962,-500.0,0.00033424,120]
[421241515,1777287067973,-574.20756618,0.00033424,120]
[421241516,1777287067983,-500.0,0.00033424,120]
[421241517,1777287067992,-1410.28,0.00033424,120]
[421241518,1777287068003,-500.0,0.00033424,120]
[421241519,1777287068013,-500.0,0.00033424,120]
[421241520,1777287068024,-500.0,0.00033424,120]
[421241521,1777287068033,-1075.28,0.00033424,120]
[421241522,1777287068043,-500.0,0.00033424,120]
[421241523,1777287068053,-512.2,0.00033424,120]
[421241524,1777287068063,-500.0,0.00033424,120]
[421241525,1777287068073,-500.0,0.00033424,120]
[421241526,1777287068082,-228.43,0.00033424,120]
[421241527,1777287068093,-571.84,0.00033424,120]
[421241528,1777287068103,-500.0,0.00033424,7]
[421241529,1777287068112,-500.0,0.00033424,120]
[421241530,1777287068122,-670.88,0.00033424,120]
[421241531,1777287068131,-927.87,0.00033424,120]
[421241532,1777287068140,-500.0,0.00033424,120]
[421241533,1777287068150,-733.46,0.00033424,120]
[421241534,1777287068159,-500.0,0.00033424,120]
[421241535,1777287068169,-845.56,0.00033424,120]
[421241536,1777287068179,-500.0,0.00033424,120]
[421241537,1777287068188,-500.0,0.00033424,120]
[421241538,1777287068202,-500.0,0.00033424,120]
[421241539,1777287068211,-1708.75,0.00033424,120]
[421241540,1777287068221,-500.0,0.00033424,120]
[421241541,1777287068230,-243.394704,0.00033424,7]
[421241542,1777287068239,-243.394704,0.00033424,7]
[421241543,1777287068249,-1389.02,0.00033424,120]
[421241544,1777287068258,-243.394704,0.00033424,7]
[421241545,1777287068267,-243.394704,0.00033424,7]
[421241546,1777287068277,-721.4,0.00033424,120]
[421241547,1777287068287,-969.99,0.00033424,120]
[421241548,1777287068296,-500.0,0.00033424,120]
[421241549,1777287068306,-832.2,0.00033424,120]
[421241550,1777287068315,-243.394704,0.00033424,7]
[421241551,1777287068324,-243.394704,0.00033424,7]
[421241552,1777287068333,-500.0,0.00033424,120]
[421241553,1777287068343,-1256.96,0.00033424,120]
[421241554,1777287068352,-822.73,0.00033424,120]
[421241555,1777287068362,-243.394704,0.00033424,7]
[421241556,1777287068372,-500.0,0.00033424,120]
[421241557,1777287068382,-243.394704,0.00033424,7]
[421241558,1777287068391,-1697.87,0.00033424,120]
[421241559,1777287068401,-500.0,0.00033424,120]
[421241560,1777287068411,-725.79,0.00033424,120]
[421241561,1777287068420,-740.81,0.00033424,120]
[421241562,1777287068430,-767.5,0.00033424,120]
[421241563,1777287068439,-704.65,0.00033424,120]
[421241564,1777287068449,-545.80599646,0.00033424,120]
[421241565,1777287068459,-874.64,0.00033424,120]
[421241566,1777287068468,-500.0,0.00033424,120]
[421241567,1777287068478,-500.0,0.00033424,120]
[421241568,1777287068488,-539.51,0.00033424,120]
[421241569,1777287068498,-1571.63,0.00033424,120]
[421241570,1777287068508,-314.92855015,0.00033424,120]
[421241571,1777287068519,-500.0,0.00033424,120]
[421241572,1777287068530,-500.0,0.00033424,120]
[421241573,1777287068540,-3139.33,0.00033424,120]
[421241574,1777287068727,-500.0,0.00033424,3]
[421241575,1777287068757,-500.0,0.00033424,120]
[421241576,1777287068767,-631.89,0.00033424,120]
[421241577,1777287068777,-500.0,0.00033424,120]
[421241578,1777287068787,-500.0,0.00033424,120]
[421241579,1777287068796,-724.47,0.00033424,120]
[421241580,1777287068807,-830.35,0.00033424,120]
[421241581,1777287068817,-714.42,0.00033424,120]
[421241582,1777287068826,-529.87,0.00033424,120]
[421241583,1777287068836,-500.0,0.00033424,120]
[421241584,1777287068845,-890.53,0.00033424,120]
[421241585,1777287068855,-500.0,0.00033424,120]
[421241586,1777287068864,-633.28,0.00033424,120]
[421241587,1777287068874,-1042.08,0.00033424,120]
[421241588,1777287068884,-500.0,0.00033424,120]
[421241589,1777287068893,-1031.26,0.00033424,120]
[421241590,1777287068903,-500.0,0.00033424,120]
[421241591,1777287068912,-500.0,0.00033424,120]
[421241592,1777287068922,-500.0,0.00033424,120]
[421241593,1777287068932,-789.82,0.00033424,120]
[421241594,1777287068942,-500.0,0.00033424,120]
[421241595,1777287068951,-500.0,0.00033424,120]
[421241596,1777287068961,-500.0,0.00033424,120]
[421241597,1777287068971,-500.0,0.00033424,120]
[421241598,1777287068980,-1044.44,0.00033424,7]
[421241599,1777287068990,-500.0,0.00033424,120]
[421241600,1777287068999,-500.0,0.00033424,120]
[421241601,1777287069010,-500.0,0.00033424,120]
[421241602,1777287069020,-500.0,0.00033424,120]
[421241603,1777287069030,-500.0,0.00033424,120]
[421241604,1777287069040,-2152.64,0.00033424,120]
[421241605,1777287069050,-500.0,0.00033424,120]
[421241606,1777287069060,-500.0,0.00033424,120]
[421241607,1777287069070,-500.0,0.00033424,120]
[421241608,1777287069080,-500.0,0.00033424,120]
[421241609,1777287069090,-951.45,0.00033424,120]
[421241610,1777287069100,-10570.76,0.00033424,120]
[421241611,1777287069110,-500.0,0.00033424,120]
[421241612,1777287069120,-953.25,0.00033424,120]
[421241613,1777287069129,-500.0,0.00033424,120]
[421241614,1777287069139,-500.0,0.00033424,120]
[421241615,1777287069149,-683.94,0.00033424,120]
[421241616,1777287069159,-500.0,0.00033424,120]
[421241617,1777287069169,-500.0,0.00033424,120]
[421241618,1777287069179,-1457.61,0.00033424,120]
[421241619,1777287069189,-500.0,0.00033424,120]
[421241620,1777287069198,-500.0,0.00033424,120]
[421241621,1777287069211,-500.0,0.00033424,120]
[421241622,1777287069221,-853.59,0.00033424,120]
[421241623,1777287069231,-500.0,0.00033424,120]
[421241624,1777287069241,-927.26,0.00033424,120]
[421241625,1777287069250,-692.0,0.00033424,120]
[421241626,1777287069261,-500.0,0.00033424,120]
[421241627,1777287069271,-1072.51,0.00033424,120]
[421241628,1777287069281,-2915.57,0.00033424,120]
[421241629,1777287069290,-500.0,0.00033424,120]
[421241630,1777287069300,-731.44,0.00033424,120]
[421241631,1777287069310,-500.0,0.00033424,120]
[421241632,1777287069321,-701.43,0.00033424,120]
[421241633,1777287069331,-500.0,0.00033424,120]
[421241634,1777287069340,-538.49096574,0.00033424,120]
[421241635,1777287069350,-954.88,0.00033424,120]
[421241636,1777287069359,-838.15,0.00033424,120]
[421241637,1777287069369,-1783.16,0.00033424,120]
[421241638,1777287069379,-500.0,0.00033424,120]
[421241639,1777287069389,-500.0,0.00033424,120]
[421241640,1777287069399,-500.0,0.00033424,120]
[421241641,1777287069408,-500.0,0.00033424,120]
[421241642,1777287069422,-4705.11,0.00033424,120]
[421241643,1777287069432,-646.45440582,0.00033424,120]
[421241644,1777287069442,-1730.6,0.00033424,120]
[421241645,1777287069451,-500.0,0.00033424,120]
[421241646,1777287069460,-500.0,0.00033424,120]
[421241647,1777287069471,-1123.77,0.00033424,120]
[421241648,1777287069480,-500.0,0.00033424,120]
[421241649,1777287069490,-500.0,0.00033424,120]
[421241650,1777287069499,-500.0,0.00033424,120]
[421241651,1777287069509,-500.0,0.00033424,120]
[421241652,1777287069519,-1408.68,0.00033424,120]
[421241653,1777287069528,-714.81,0.00033424,120]
[421241654,1777287069538,-1779.59,0.00033424,120]
[421241655,1777287069547,-500.0,0.00033424,120]
[421241656,1777287069558,-667.82,0.00033424,120]
[421241657,1777287069567,-500.0,0.00033424,120]
[421241658,1777287069577,-5381.05,0.00033424,120]
[421241659,1777287069587,-922.62,0.00033424,120]
[421241660,1777287069596,-625.44,0.00033424,5]
[421241661,1777287069606,-500.0,0.00033424,120]
[421241662,1777287069616,-274.581385,0.00033424,7]
[421241663,1777287069626,-1690.78,0.00033424,120]
[421241664,1777287069636,-2035.1,0.00033424,120]
[421241665,1777287069645,-674.61,0.00033424,120]
[421241666,1777287069655,-274.581385,0.00033424,7]
[421241667,1777287069668,-500.0,0.00033424,120]
[421241668,1777287069678,-500.0,0.00033424,120]
[421241669,1777287069687,-1164.41,0.00033424,120]
[421241670,1777287069697,-274.581385,0.00033424,7]
[421241671,1777287069707,-500.0,0.00033424,120]
[421241672,1777287069716,-1082.08,0.00033424,120]
[421241673,1777287069726,-1043.04,0.00033424,120]
[421241674,1777287069736,-500.0,0.00033424,120]
[421241675,1777287069746,-998.96,0.00033424,120]
[421241676,1777287069755,-500.0,0.00033424,120]
[421241677,1777287069765,-784.08,0.00033424,120]
[421241678,1777287069775,-1079.64,0.00033424,120]
[421241679,1777287069784,-274.581385,0.00033424,7]
[421241680,1777287069794,-519.77,0.00033424,120]
[421241681,1777287069804,-1143.94,0.00033424,120]
[421241682,1777287069814,-500.0,0.00033424,120]
[421241683,1777287069824,-1451.57,0.00033424,120]
[421241684,1777287069834,-500.0,0.00033424,120]
[421241685,1777287069844,-500.0,0.00033424,120]
[421241686,1777287069854,-819.21,0.00033424,120]
[421241687,1777287069864,-1138.56,0.00033424,120]
[421241688,1777287069874,-601.09,0.00033424,120]
[421241689,1777287069884,-4201.7,0.00033424,120]
[421241690,1777287069894,-500.0,0.00033424,120]
[421241691,1777287069904,-996.55,0.00033424,120]
[421241692,1777287069914,-1047.55,0.00033424,120]
[421241693,1777287069924,-541.91,0.00033424,120]
[421241694,1777287069934,-500.0,0.00033424,120]
[421241695,1777287069944,-500.0,0.00033424,120]
[421241696,1777287069954,-500.0,0.00033424,120]
[421241697,1777287069964,-500.0,0.00033424,120]
[421241698,1777287069974,-795.18,0.00033424,120]
[421241699,1777287069984,-1162.36,0.00033424,120]
[421241700,1777287069994,-500.0,0.00033424,120]
[421241701,1777287070003,-500.0,0.00033424,120]
[421241702,1777287070013,-845.1,0.00033424,120]
[421241703,1777287070023,-1487.38,0.00033424,120]
[421241704,1777287070033,-500.0,0.00033424,120]
[421241705,1777287070043,-500.0,0.00033424,120]
[421241706,1777287070052,-500.0,0.00033424,120]
[421241707,1777287070062,-500.0,0.00033424,120]
[421241708,1777287070072,-500.0,0.00033424,120]
[421241709,1777287070082,-500.0,0.00033424,120]
[421241710,1777287070092,-898.94,0.00033424,120]
[421241711,1777287070101,-500.0,0.00033424,120]
[421241712,1777287070111,-500.0,0.00033424,120]
[421241713,1777287070120,-500.0,0.00033424,120]
[421241714,1777287070130,-500.0,0.00033424,120]
[421241715,1777287070140,-500.62,0.00033424,120]
[421241716,1777287070149,-2636.09,0.00033424,120]
[421241717,1777287070159,-500.0,0.00033424,120]
[421241718,1777287070169,-1789.45,0.00033424,120]
[421241719,1777287070179,-500.0,0.00033424,120]
[421241720,1777287070188,-1085.3,0.00033424,120]
[421241721,1777287070199,-892.08,0.00033424,120]
[421241722,1777287070208,-500.0,0.00033424,120]
[421241723,1777287070218,-631.37,0.00033424,120]
[421241724,1777287070228,-581.62,0.00033424,120]
[421241725,1777287070239,-808.43,0.00033424,120]
[421241726,1777287070249,-741.62,0.00033424,120]
[421241727,1777287070259,-500.0,0.00033424,120]
[421241728,1777287070268,-500.0,0.00033424,120]
[421241729,1777287070278,-500.0,0.00033424,120]
[421241730,1777287070288,-500.0,0.00033424,120]
[421241731,1777287070298,-762.27,0.00033424,120]
[421241732,1777287070308,-1157.96,0.00033424,120]
[421241733,1777287070318,-633.93,0.00033424,120]
[421241734,1777287070328,-874.69,0.00033424,120]
[421241735,1777287070338,-500.0,0.00033424,120]
[421241736,1777287070348,-900.98,0.00033424,120]
[421241737,1777287070357,-500.0,0.00033424,120]
[421241738,1777287070367,-10204.73,0.00033424,120]
[421241739,1777287070376,-1526.17,0.00033424,120]
[421241740,1777287070386,-500.0,0.00033424,120]
[421241741,1777287070396,-500.0,0.00033424,120]
[421241742,1777287070405,-500.0,0.00033424,120]
[421241743,1777287070415,-891.6,0.00033424,120]
[421241744,1777287070424,-500.0,0.00033424,120]
[421241745,1777287070433,-1367.53,0.00033424,120]
[421241746,1777287070443,-500.0,0.00033424,120]
[421241747,1777287070452,-683.25,0.00033424,120]
[421241748,1777287070462,-1508.4,0.00033424,120]
[421241749,1777287070471,-737.72,0.00033424,120]
[421241750,1777287070481,-500.0,0.00033424,120]
[421241751,1777287070491,-500.0,0.00033424,120]
[421241752,1777287070501,-10627.51,0.00033424,11]
[421241753,1777287070511,-500.0,0.00033424,120]
[421241754,1777287070521,-500.0,0.00033424,120]
[421241755,1777287070532,-944.61,0.00033424,120]
[421241756,1777287070542,-1952.39,0.00033424,120]
[421241757,1777287070552,-992.31,0.00033424,120]
[421241758,1777287070573,-500.0,0.00033424,120]
[421241759,1777287070584,-644.32,0.00033424,120]
[421241760,1777287070594,-500.0,0.00033424,120]
[421241761,1777287070604,-500.0,0.00033424,120]
[421241762,1777287070614,-500.0,0.00033424,120]
[421241763,1777287070624,-855.86,0.00033424,120]
[421241764,1777287070635,-500.0,0.00033424,120]
[421241765,1777287070644,-938.15,0.00033424,120]
[421241766,1777287070655,-500.0,0.00033424,120]
[421241767,1777287070665,-500.0,0.00033424,120]
[421241768,1777287070675,-976.87,0.00033424,120]
[421241769,1777287070687,-500.0,0.00033424,120]
[421241770,1777287070698,-567.72745503,0.00033424,120]
[421241771,1777287070708,-500.0,0.00033424,120]
[421241772,1777287070718,-505.03,0.00033424,120]
[421241773,1777287070728,-484.12177321,0.00033424,120]
[421241774,1777287070739,-294.67,0.00033424,120]
[421241775,1777287070749,-500.0,0.00033424,120]
[421241776,1777287070759,-889.14,0.00033424,120]
[421241777,1777287070769,-500.0,0.00033424,120]
[421241778,1777287070779,-816.73,0.00033424,120]
[421241779,1777287070789,-624.72,0.00033424,120]
[421241780,1777287070799,-9821.09,0.00033424,14]
[421241781,1777287070809,-523.03,0.00033424,120]
[421241782,1777287070819,-2650.84,0.00033424,2]
[421241783,1777287070829,-500.0,0.00033424,120]
[421241784,1777287070839,-822.98,0.00033424,120]
[421241785,1777287070849,-729.37,0.00033424,120]
[421241786,1777287071291,-1000.0,0.00033424,120]
[421241787,1777287071302,-500.0,0.00033424,120]
[421241788,1777287071311,-500.0,0.00033424,120]
[421241789,1777287071321,-1044.79,0.00033424,120]
[421241790,1777287071330,-2033.75,0.00033424,120]
[421241791,1777287071339,-500.0,0.00033424,120]
[421241792,1777287071349,-2315.34,0.00033424,120]
[421241793,1777287071358,-957.71,0.00033424,120]
[421241794,1777287071368,-500.0,0.00033424,120]
[421241795,1777287071378,-651.78,0.00033424,120]
[421241796,1777287071387,-1144.22,0.00033424,120]
[421241797,1777287071397,-872.94,0.00033424,120]
[421241798,1777287071406,-500.0,0.00033424,120]
[421241799,1777287071415,-500.0,0.00033424,120]
[421241800,1777287071425,-500.0,0.00033424,120]
[421241801,1777287071436,-500.0,0.00033424,120]
[421241802,1777287071446,-500.0,0.00033424,120]
[421241803,1777287071456,-905.69,0.00033424,120]
[421241804,1777287071466,-500.0,0.00033424,120]
[421241805,1777287071480,-659.77,0.00033424,120]
[421241806,1777287071490,-500.0,0.00033424,120]
[421241807,1777287071500,-263.63892554,0.00033424,120]
[421241808,1777287071510,-572.93,0.00033424,120]
[421241809,1777287071521,-350.87,0.00033424,120]
[421241810,1777287071531,-526.89,0.00033424,120]
[421241811,1777287071541,-500.0,0.00033424,30]
[421241812,1777287071551,-2198.73,0.00033424,31]
[421241813,1777287071561,-936.24,0.00033424,120]
[421241814,1777287071571,-7236.62,0.00033424,120]
[421241815,1777287071581,-1500.0,0.00033424,120]
[421241816,1777287071591,-601.2,0.00033424,120]
[421241817,1777287071600,-1282.75,0.00033424,120]
[421241818,1777287071610,-500.0,0.00033424,120]
[421241819,1777287071619,-500.0,0.00033424,120]
[421241820,1777287071629,-500.0,0.00033424,120]
[421241821,1777287071639,-165.98218938,0.00033473,5]
[421241822,1777287071649,-22301.13030615,0.00033493,95]
[421241823,1777287071659,-1011.34,0.000335,14]
[421241824,1777287071669,-219.48921421,0.00033529,120]
[421241825,1777287071679,-200.0,0.00033538,2]
[421241826,1777287071689,-500.0,0.00033562,120]
[421241827,1777287071699,-219.48921421,0.00033624,120]
[421241828,1777287071709,-40919.8,0.00033698,120]
[421241829,1777287071719,-5510.884336,0.00033698,120]
[421241830,1777287071729,-406.931409,0.00033698,120]
[421241831,1777287071738,-325.762595,0.00033698,120]
[421241832,1777287071749,-342.964341,0.00033698,120]
[421241833,1777287071758,-2698.281126,0.00033698,120]
[421241834,1777287071768,-500.0,0.00033698,120]
[421241835,1777287071778,-500.0,0.00033698,30]
[421241836,1777287071788,-500.0,0.00033698,90]
[421241837,1777287071798,-500.0,0.00033698,120]
[421241838,1777287071810,-500.0,0.00033698,120]
[421241839,1777287071820,-500.0,0.00033698,120]
[421241840,1777287071829,-500.0,0.00033698,120]
[421241841,1777287071839,-179.08614548,0.00033698,120]
[421241842,1777287071848,-500.0,0.00033698,120]
[421241843,1777287071858,-500.0,0.00033698,120]
[421241844,1777287071867,-500.0,0.00033698,30]
[421241845,1777287071877,-500.0,0.00033698,120]
[421241846,1777287071887,-500.0,0.00033698,120]
[421241847,1777287071896,-500.0,0.00033698,120]
[421241848,1777287071906,-500.0,0.00033698,120]
[421241849,1777287071916,-500.0,0.00033698,120]
[421241850,1777287071926,-500.0,0.00033698,120]
[421241851,1777287071937,-863.36,0.00033698,120]
[421241852,1777287071947,-500.0,0.00033698,2]
[421241853,1777287071956,-500.0,0.00033698,120]
[421241854,1777287071966,-599.06,0.00033698,120]
[421241855,1777287071976,-365.31994322,0.00033698,120]
[421241856,1777287071986,-500.0,0.00033698,120]
[421241857,1777287071996,-640.83,0.00033698,120]
[421241858,1777287072006,-500.0,0.00033698,120]
[421241859,1777287072016,-500.0,0.00033698,120]
[421241860,1777287072026,-500.0,0.00033698,120]